fUSD/lending_fUSD_20240217
["ID","MTS","AMOUNT","RATE_DAILY","PERIOD"]
[314291540,1708157490698,-758.616133,0.00054795,14]
[314291541,1708157490708,-758.616133,0.00054795,14]
[314291542,1708157490717,-758.616133,0.00054795,14]
[314291543,1708157490726,-500.0,0.00054795,120]
[314291544,1708157490735,-500.0,0.00054795,120]
[314291545,1708157490744,-500.0,0.00054795,120]
[314291546,1708157490754,-500.0,0.00054795,120]
[314291547,1708157490764,-500.0,0.00054795,120]
[314291548,1708157490775,-623.94045744,0.00054795,120]
[314291549,1708157490784,-219.0,0.00054799,120]
[314291550,1708157490793,-200.0,0.000548,120]
[314291551,1708157490802,-2166.73013442,0.000548,120]
[314291552,1708157490811,-2000.0,0.000548,120]
[314291553,1708157490820,-5000.0,0.000548,120]
[314291554,1708157490830,-160.0,0.00054877,120]
[314291555,1708157490839,-666.32419198,0.00054888,120]
[314291556,1708157490848,-25000.0,0.000549,120]
[314291557,1708157490857,-7301.69732635,0.000549,80]
[314291558,1708157490866,-7000.0,0.000549,100]
[314291559,1708157490875,-217.99170126,0.0005495,120]
[314291560,1708157490885,-580.9520184,0.00054962,2]
[314291561,1708157490894,-2255.6186853,0.0005498,30]
[314291562,1708157490903,-200.0,0.00054987,89]
[314291563,1708157490913,-200.0,0.00054987,90]
[314291564,1708157490923,-200.0,0.00054987,87]
[314291565,1708157490935,-11142.51807061,0.00055,60]
[314291566,1708157490945,-5463.14301188,0.00055,120]
[314291567,1708157490954,-81744.41910139,0.00055,2]
[314291568,1708157490963,-70002.082499,0.00055,2]
[314291569,1708157490975,-152.63980413,0.00055,120]
[314291570,1708157490984,-24171.83042758,0.00055,14]
[314291571,1708157490993,-11800.0,0.00055,120]
[314291572,1708157491002,-84082.37155243,0.00055,30]
[314291573,1708157491025,-260462.69840913,0.00055,30]
[314291574,1708157491571,-378.44141623,0.00049315,60]
[314291575,1708157491581,-230.19743764,0.00050136,60]
[314291576,1708157491642,-269.80256236,0.00050136,60]
[314291577,1708157491651,-500.0,0.0005041,60]
[314291578,1708157491660,-1664.39046153,0.00050684,60]
[314291579,1708157491811,-860.9737231,0.00050684,60]
[314291580,1708157491822,-2620.07581537,0.00050684,60]
[314291581,1708157491832,-500.0,0.00050684,60]
[314291582,1708157491841,-422.51635196,0.00050958,60]
[314291583,1708157491858,-1130.0,0.00050958,60]
[314291584,1708157491870,-701.33067573,0.00050958,60]
[314291585,1708157491887,-420.48948472,0.00050958,60]
[314291586,1708157491922,-2471.10348759,0.00050958,60]
[314291587,1708157491933,-243.8631152,0.00050958,60]
[314291588,1708157492099,-2450.03149468,0.000229,2]
[314291589,1708157492108,-1783.97139218,0.00028115,2]
[314291590,1708157492188,-1301.07860782,0.00028115,2]
[314291591,1708157492198,-256.1368848,0.00050958,60]
[314291592,1708157492208,-120.44976148,0.00051232,60]
[314291593,1708157492792,-5024.99023852,0.00051232,60]
[314291594,1708157492802,-500.0,0.00051232,60]
[314291595,1708157492811,-5145.44,0.00051506,60]
[314291596,1708157492821,-5145.44,0.0005178,60]
[314291597,1708157492830,-5145.44,0.00052054,60]
[314291598,1708157492840,-500.0,0.00052328,60]
[314291599,1708157492850,-5145.44,0.00052328,60]
[314291600,1708157492859,-500.0,0.00052602,60]
[314291601,1708157492869,-5145.44,0.00052602,60]
[314291602,1708157492879,-500.0,0.00052876,60]
[314291603,1708157492889,-5145.44,0.00052876,60]
[314291604,1708157492898,-879.44,0.0005315,60]
[314291605,1708157492907,-500.0,0.0005315,60]
[314291606,1708157492917,-5145.44,0.0005315,60]
[314291607,1708157492926,-879.44,0.00053424,60]
[314291608,1708157492938,-500.0,0.00053424,60]
[314291609,1708157492948,-5145.44,0.00053424,60]
[314291610,1708157492957,-879.44,0.00053698,60]
[314291611,1708157492967,-500.0,0.00053698,60]
[314291612,1708157492980,-5145.44,0.00053698,60]
[314291613,1708157492989,-879.44,0.00053972,60]
[314291614,1708157492999,-500.0,0.00053972,60]
[314291615,1708157493008,-5145.44,0.00053972,60]
[314291616,1708157493018,-879.44,0.00054246,60]
[314291617,1708157493028,-465.01740954,0.00054246,60]
[314291618,1708157493038,-5145.44,0.00054246,60]
[314291619,1708157493048,-879.44,0.0005452,120]
[314291620,1708157493058,-5145.44,0.0005452,120]
[314291621,1708157493068,-879.44,0.00054794,120]
[314291622,1708157493078,-5145.44,0.00054794,120]
[314291623,1708157493087,-758.616133,0.00054795,14]
[314291624,1708157493097,-758.616133,0.00054795,14]
[314291625,1708157493106,-758.616133,0.00054795,14]
[314291626,1708157493115,-758.616133,0.00054795,14]
[314291627,1708157493124,-758.616133,0.00054795,14]
[314291628,1708157493134,-758.616133,0.00054795,14]
[314291629,1708157493144,-758.616133,0.00054795,14]
[314291630,1708157493154,-758.616133,0.00054795,14]
[314291631,1708157493163,-758.616133,0.00054795,14]
[314291632,1708157493173,-758.616133,0.00054795,14]
[314291633,1708157493184,-758.616133,0.00054795,14]
[314291634,1708157493195,-758.616133,0.00054795,14]
[314291635,1708157493205,-758.616133,0.00054795,14]
[314291636,1708157493216,-758.616133,0.00054795,14]
[314291637,1708157493225,-758.616127,0.00054795,14]
[314291638,1708157493235,-17886.56063915,0.00055,30]
[314291639,1708157493351,-3515.87498759,0.00055,120]
[314291640,1708157493374,-49202.45024403,0.00055,30]
[314291641,1708157493384,-44830.71627671,0.00055,120]
[314291642,1708157493393,-2314.35368769,0.00055,30]
[314291643,1708157493403,-165.0,0.00055,120]
[314291644,1708157493412,-163.94316173,0.00055,120]
[314291645,1708157493422,-250.0,0.00055,55]
[314291646,1708157493432,-186591.74229204,0.00055,31]
[314291647,1708157493441,-10064.759095,0.00055,120]
[314291648,1708157493451,-1000.0,0.00055,15]
[314291649,1708157493460,-285.7651032,0.00055,120]
[314291650,1708157493470,-320.0,0.00055,120]
[314291651,1708157493479,-353.03085381,0.00055,60]
[314291652,1708157493489,-292.86244381,0.00055,60]
[314291653,1708157493498,-333.0,0.00055,30]
[314291654,1708157493507,-224.01620794,0.00055,60]
[314291655,1708157493516,-5000.0,0.00055,20]
[314291656,1708157493527,-1000.0,0.00055,120]
[314291657,1708157493537,-1011.9581279,0.00055,120]
[314291658,1708157493546,-443.50524662,0.00055,60]
[314291659,1708157493556,-3152.66345079,0.00055,120]
[314291660,1708157493566,-1666.21794752,0.00055,60]
[314291661,1708157493575,-275.56618133,0.00055,120]
[314291662,1708157493585,-557.53589337,0.00055,75]
[314291663,1708157493594,-510.15287289,0.00055,75]
[314291664,1708157493605,-160.0,0.00055,120]
[314291665,1708157493615,-1000.0,0.00055021,60]
[314291666,1708157493624,-1000.0,0.00055048,60]
[314291667,1708157493633,-739.89,0.00055068,120]
[314291668,1708157493642,-629.85,0.00055068,120]
[314291669,1708157493652,-234.61051149,0.00055068,120]
[314291670,1708157493662,-583.88,0.00055068,2]
[314291671,1708157493671,-618.81,0.00055068,120]
[314291672,1708157493680,-526.92,0.00055068,120]
[314291673,1708157493689,-1028.76,0.00055068,2]
[314291674,1708157493699,-500.0,0.00055068,120]
[314291675,1708157493708,-1162.21,0.00055068,120]
[314291676,1708157493718,-1393.94,0.00055068,120]
[314291677,1708157493727,-500.73,0.00055068,120]
[314291678,1708157493737,-854.01,0.00055068,120]
[314291679,1708157493746,-1515.85,0.00055068,120]
[314291680,1708157493755,-636.17,0.00055068,120]
[314291681,1708157493764,-1186.43,0.00055068,120]
[314291682,1708157493774,-3147.75,0.00055068,120]
[314291683,1708157493784,-657.81,0.00055068,120]
[314291684,1708157493794,-569.8,0.00055068,120]
[314291685,1708157493803,-5184.93,0.00055068,120]
[314291686,1708157493813,-556.89,0.00055068,120]
[314291687,1708157493822,-1446.13,0.00055068,120]
[314291688,1708157493832,-354.71468194,0.00055068,120]
[314291689,1708157493841,-500.0,0.00055068,120]
[314291690,1708157493850,-1868.35,0.00055068,120]
[314291691,1708157493860,-1210.8,0.00055068,14]
[314291692,1708157493869,-643.5,0.00055068,120]
[314291693,1708157493879,-1614.2,0.00055068,120]
[314291694,1708157493889,-3236.35,0.00055068,120]
[314291695,1708157493899,-502.24,0.00055068,120]
[314291696,1708157493908,-804.5,0.00055068,120]
[314291697,1708157493917,-500.0,0.00055068,120]
[314291698,1708157493927,-910.43,0.00055068,120]
[314291699,1708157493938,-500.0,0.00055068,120]
[314291700,1708157493947,-532.93,0.00055068,120]
[314291701,1708157493957,-2150.49,0.00055068,120]
[314291702,1708157493966,-958.24,0.00055068,120]
[314291703,1708157493980,-1655.71,0.00055068,120]
[314291704,1708157493989,-543.92,0.00055068,120]
[314291705,1708157493999,-707.56,0.00055068,120]
[314291706,1708157494008,-1947.64,0.00055068,120]
[314291707,1708157494018,-1182.25,0.00055068,120]
[314291708,1708157494029,-1133.06,0.00055068,120]
[314291709,1708157494038,-713.76,0.00055068,120]
[314291710,1708157494048,-577.85,0.00055068,120]
[314291711,1708157494058,-1166.8,0.00055068,120]
[314291712,1708157494067,-554.4,0.00055068,120]
[314291713,1708157494077,-569.35,0.00055068,120]
[314291714,1708157494086,-739.49,0.00055068,120]
[314291715,1708157494096,-500.0,0.00055068,120]
[314291716,1708157494106,-11780.69,0.00055068,120]
[314291717,1708157494115,-879.44,0.00055068,120]
[314291718,1708157494125,-5145.44,0.00055068,120]
[314291719,1708157494135,-160.0,0.00055068,120]
[314291720,1708157494145,-200.0,0.00055111,120]
[314291721,1708157494154,-500.0,0.00055137,120]
[314291722,1708157494165,-173.021788,0.00055148,107]
[314291723,1708157494175,-179.021788,0.00055248,103]
[314291724,1708157494186,-159.879999,0.00055285,120]
[314291725,1708157494196,-1505.5599939,0.000553,30]
[314291726,1708157494206,-663.1363543,0.00055304,2]
[314291727,1708157494216,-739.89,0.00055342,120]
[314291728,1708157494227,-629.85,0.00055342,120]
[314291729,1708157494237,-583.88,0.00055342,2]
[314291730,1708157494246,-618.81,0.00055342,120]
[314291731,1708157494256,-526.92,0.00055342,120]
[314291732,1708157494266,-1028.76,0.00055342,2]
[314291733,1708157494277,-499.34942098,0.00055342,120]
[314291734,1708157494287,-1162.21,0.00055342,120]
[314291735,1708157494297,-1393.94,0.00055342,120]
[314291736,1708157494308,-500.73,0.00055342,120]
[314291737,1708157494317,-854.01,0.00055342,120]
[314291738,1708157494327,-1515.85,0.00055342,120]
[314291739,1708157494337,-636.17,0.00055342,120]
[314291740,1708157494347,-1186.43,0.00055342,120]
[314291741,1708157494357,-3147.75,0.00055342,120]
[314291742,1708157494367,-657.81,0.00055342,120]
[314291743,1708157494377,-569.8,0.00055342,120]
[314291744,1708157494387,-5184.93,0.00055342,120]
[314291745,1708157494397,-556.89,0.00055342,120]
[314291746,1708157494407,-1446.13,0.00055342,120]
[314291747,1708157494416,-500.0,0.00055342,120]
[314291748,1708157494426,-500.0,0.00055342,120]
[314291749,1708157494435,-500.0,0.00055342,120]
[314291750,1708157494445,-619.31635118,0.00055342,120]
[314291751,1708157494454,-500.0,0.00055342,120]
[314291752,1708157494464,-1868.35,0.00055342,120]
[314291753,1708157494474,-1210.8,0.00055342,14]
[314291754,1708157494483,-643.5,0.00055342,120]
[314291755,1708157494493,-1614.2,0.00055342,120]
[314291756,1708157494502,-3236.35,0.00055342,120]
[314291757,1708157494512,-502.24,0.00055342,120]
[314291758,1708157494521,-804.5,0.00055342,120]
[314291759,1708157494530,-500.0,0.00055342,120]
[314291760,1708157494541,-910.43,0.00055342,120]
[314291761,1708157494550,-500.0,0.00055342,120]
[314291762,1708157494560,-532.93,0.00055342,120]
[314291763,1708157494569,-2150.49,0.00055342,120]
[314291764,1708157494577,-958.24,0.00055342,120]
[314291765,1708157494586,-1655.71,0.00055342,120]
[314291766,1708157494594,-543.92,0.00055342,120]
[314291767,1708157494603,-707.56,0.00055342,120]
[314291768,1708157494612,-1947.64,0.00055342,120]
[314291769,1708157494621,-1182.25,0.00055342,120]
[314291770,1708157494629,-1133.06,0.00055342,120]
[314291771,1708157494638,-713.76,0.00055342,120]
[314291772,1708157494647,-577.85,0.00055342,120]
[314291773,1708157494656,-1166.8,0.00055342,120]
[314291774,1708157494666,-554.4,0.00055342,120]
[314291775,1708157494675,-569.35,0.00055342,120]
[314291776,1708157494685,-739.49,0.00055342,120]
[314291777,1708157494694,-512.67530741,0.00055342,120]
[314291778,1708157494704,-11780.69,0.00055342,120]
[314291779,1708157494715,-879.44,0.00055342,120]
[314291780,1708157494725,-5145.44,0.00055342,120]
[314291781,1708157494735,-219.0,0.00055347,120]
[314291782,1708157494744,-173.021788,0.00055348,106]
[314291783,1708157494754,-25000.0,0.000554,120]
[314291784,1708157494764,-1000.0,0.0005541,60]
[314291785,1708157494775,-179.021788,0.00055448,107]
[314291786,1708157494785,-160.0,0.00055452,120]
[314291787,1708157494795,-500.0,0.00055479,120]
[314291788,1708157494804,-1000.0,0.00055488,60]
[314291789,1708157494814,-1000.0,0.00055496,60]
[314291790,1708157494824,-182.72,0.00055554,120]
[314291791,1708157494835,-328.896,0.00055554,120]
[314291792,1708157494845,-304.533333,0.00055554,120]
[314291793,1708157494854,-182.72,0.00055554,120]
[314291794,1708157494864,-740.1167482,0.00055616,120]
[314291795,1708157494874,-630.00975028,0.00055616,120]
[314291796,1708157494883,-583.96505714,0.00055616,2]
[314291797,1708157494893,-618.99753312,0.00055616,120]
[314291798,1708157494902,-527.10569939,0.00055616,120]
[314291799,1708157494912,-1028.82186374,0.00055616,2]
[314291800,1708157494922,-1162.33682117,0.00055616,120]
[314291801,1708157494934,-3925.05,0.00055616,7]
[314291802,1708157494943,-1141.44875561,0.00055616,120]
[314291803,1708157495014,-252.53124439,0.00055616,120]
[314291804,1708157495024,-129.98602575,0.00055616,120]
[314291805,1708157496298,151.10024855,0.00022,2]
[314291806,1708157496439,875.98765507,0.00022494,2]
[314291807,1708157511068,-1558.55989489,0.00022494,2]
[314291808,1708157511089,-2450.03149468,0.00022913,2]
[314291809,1708157511109,-2450.03149468,0.00022926,2]
[314291810,1708157596532,188.4559,0.00024998,2]
[314291811,1708157660554,1000.0,0.00024998,2]
[314291813,1708158068271,2986.1977,0.0002499,2]
[314291815,1708158128304,176.85,0.0002132,2]
[314291816,1708158172573,162.1523967,0.00024965,2]
[314291817,1708158290799,155.3154,0.0002499,2]
[314291819,1708158523174,200.0,0.00024865,2]
[314291820,1708158556667,1263.2162,0.0002499,2]
[314291829,1708158631814,-816.58789648,0.00025089,2]
[314291830,1708158631981,-776.8680163,0.00025089,2]
[314291831,1708158631990,-1802.64150053,0.0002509,2]
[314291832,1708158632000,-289.37761486,0.00025098,2]
[314291833,1708158632009,-2045.12185244,0.000251,2]
[314291834,1708158635228,176.85,0.00018959,2]
[314291840,1708158637749,-32874.65961378,0.000251,2]
[314291841,1708158637759,-3221.0,0.0002521,2]
[314291842,1708158637769,-469.0,0.000274,7]
[314291843,1708158637778,-189.69805008,0.00028114,2]
[314291844,1708158637787,-1861.66346308,0.0003,4]
[314291845,1708158637797,-908.5809168,0.0003,2]
[314291846,1708158637806,-499.99,0.0003,2]
[314291847,1708158637815,-2454.0,0.000351,2]
[314291848,1708158637825,-1744.82,0.000351,2]
[314291849,1708158637834,-5753.42,0.000351,2]
[314291850,1708158637843,-150.99,0.000351,2]
[314291851,1708158637853,-621.90616497,0.00038312,3]
[314291852,1708158637863,-621.90616497,0.00038312,3]
[314291853,1708158637873,-483.77,0.00038864,2]
[314291854,1708158637882,-200.0,0.000395,30]
[314291855,1708158637891,-500.0,0.00039633,2]
[314291856,1708158637900,-1852.42,0.00039648,2]
[314291857,1708158637910,-500.0,0.00039669,2]
[314291858,1708158637919,-252.7,0.000398,2]
[314291859,1708158637928,-1558.15,0.00039907,2]
[314291860,1708158637937,-1264.36,0.00039931,2]
[314291861,1708158637946,-1783.97,0.0003997,2]
[314291862,1708158637955,-2705.0,0.0004001,120]
[314291863,1708158637964,-363.56,0.00040022,15]
[314291864,1708158637973,-7777.34,0.00040022,2]
[314291865,1708158637982,-2389.86,0.00040022,2]
[314291866,1708158637991,-10409.08,0.00040082,2]
[314291867,1708158638000,-200.0,0.00040126,2]
[314291868,1708158638010,-250.0,0.00040174,111]
[314291869,1708158638018,-2699.12,0.0004022,2]
[314291870,1708158638027,-288663.3664,0.00040249,2]
[314291871,1708158638037,-2816.13,0.00040336,2]
[314291872,1708158638047,-4693.1,0.00040349,2]
[314291873,1708158638056,-9192.7,0.00040349,2]
[314291874,1708158638065,-500.0,0.00040377,2]
[314291875,1708158638074,-7497.98076386,0.00040439,12]
[314291876,1708158638083,-775.79962772,0.00040439,11]
[314291877,1708158638092,-150.0,0.00040475,2]
[314291878,1708158638101,-200.0,0.00040515,2]
[314291879,1708158638110,-192.5,0.00040515,120]
[314291880,1708158638119,-546.56,0.00040619,2]
[314291881,1708158638128,-500.0,0.00040639,2]
[314291882,1708158638137,-151.98,0.00040661,2]
[314291883,1708158638146,-23900.0,0.00040729,2]
[314291884,1708158638155,-166.73,0.00040818,2]
[314291885,1708158638165,-750.0,0.00040841,2]
[314291886,1708158638175,-15852.83587305,0.00040891,120]
[314291887,1708158638184,-155.08301687,0.00040891,2]
[314291888,1708158638193,-151.0,0.00040891,30]
[314291889,1708158638202,-150.0,0.00040891,30]
[314291890,1708158638211,-230.0,0.00040891,120]
[314291891,1708158638221,-1137.37989133,0.00040891,2]
[314291892,1708158638230,-9849.44610477,0.00040891,2]
[314291893,1708158638242,-250.0,0.00040974,2]
[314291894,1708158638251,-501.46,0.00040995,2]
[314291895,1708158638260,-300.0,0.00040997,2]
[314291896,1708158638269,-550.0,0.00041057,5]
[314291897,1708158638279,-483.77,0.00041128,2]
[314291898,1708158638288,-172.0,0.00041315,2]
[314291899,1708158638298,-207.225,0.00041484,2]
[314291900,1708158638307,-252.7592,0.00041484,2]
[314291901,1708158638319,-1558.15,0.00041551,2]
[314291902,1708158638329,-21385.47,0.00041584,2]
[314291903,1708158638339,-1000.0,0.00041802,2]
[314291904,1708158638348,-179.29006074,0.00041869,4]
[314291905,1708158638358,-152.28659373,0.00041869,4]
[314291906,1708158638367,-2000.0,0.00041902,120]
[314291907,1708158638377,-19244.88,0.00041902,2]
[314291908,1708158638386,-150.0,0.00041969,2]
[314291909,1708158638395,-11900.0,0.00041989,2]
[314291910,1708158638404,-965.47916117,0.00042,7]
[314291911,1708158638414,-150.0,0.00042,30]
[314291912,1708158638425,-418.5507,0.00042087,2]
[314291913,1708158638435,-166.05101382,0.00042114,30]
[314291914,1708158638444,-250.0,0.00042174,2]
[314291915,1708158638453,-300.0,0.00042367,2]
[314291916,1708158638462,-676.0,0.00042492,5]
[314291917,1708158638471,-2500.0,0.00042626,2]
[314291918,1708158638481,-3457.17,0.00042703,2]
[314291919,1708158638491,-167.0,0.00042898,2]
[314291920,1708158638499,-172.04839428,0.00043,2]
[314291921,1708158638508,-166.73,0.00043064,2]
[314291922,1708158638518,-2981.61,0.00043068,2]
[314291923,1708158638528,-1558.15,0.00043195,2]
[314291924,1708158638538,-200.0,0.00043229,2]
[314291925,1708158638548,-152.57,0.00043302,2]
[314291926,1708158638557,-483.77,0.00043392,2]
[314291927,1708158638566,-1000.0,0.00043638,2]
[314291928,1708158638576,-3194.53,0.00043638,2]
[314291929,1708158638586,-363.56,0.00043758,15]
[314291930,1708158638595,-169.4451165,0.00043898,30]
[314291931,1708158638605,-832.0,0.00043977,5]
[314291932,1708158638614,-167.0,0.00044314,2]
[314291933,1708158638623,-2463.82,0.00044319,2]
[314291934,1708158638632,-2000.0,0.000447,2]
[314291935,1708158638642,-1558.15,0.00044838,2]
[314291936,1708158638651,-3611.88,0.00045,5]
[314291937,1708158638661,-4833.78305591,0.00045,17]
[314291938,1708158638670,-150.0,0.00045,30]
[314291939,1708158638679,-150.0,0.00045,2]
[314291940,1708158638688,-166.73,0.00045309,2]
[314291941,1708158638696,-1023.0,0.00045515,5]
[314291942,1708158638706,-483.77,0.00045656,2]
[314291943,1708158638715,-167.0,0.0004573,2]
[314291944,1708158638724,-1231.0,0.00045777,2]
[314291945,1708158638733,-343.0,0.00045777,2]
[314291946,1708158638743,-2871.0,0.00045777,2]
[314291947,1708158638752,-292.1,0.00045777,2]
[314291948,1708158638761,-953.0,0.00045777,2]
[314291949,1708158638769,-180.0,0.00046188,2]
[314291950,1708158638779,-7206.3845,0.00046211,2]
[314291951,1708158638788,-16361.2903,0.00046211,2]
[314291952,1708158638797,-477.9298,0.00046211,2]
[314291953,1708158638806,-2434.257,0.00046211,2]
[314291954,1708158638815,-322.0563,0.00046211,2]
[314291955,1708158638823,-161.82539311,0.00046468,12]
[314291956,1708158638832,-1558.15,0.00046482,2]
[314291957,1708158638841,-326.39602264,0.00046526,18]
[314291958,1708158638850,-65574.0006528,0.00046568,12]
[314291959,1708158638859,-235.08,0.00046575,2]
[314291960,1708158638868,-51018.6893796,0.00046578,2]
[314291961,1708158638881,-85415.1171204,0.00046578,2]
[314291962,1708158638890,-501.97258124,0.00046607,5]
[314291963,1708158638899,-152.28659373,0.00046635,8]
[314291964,1708158638908,-210.33397952,0.00046687,2]
[314291965,1708158638917,-58288.0005802,0.00046697,12]
[314291966,1708158638927,-83376.82428,0.00046697,10]
[314291967,1708158638936,-1765.0,0.000467,115]
[314291968,1708158638945,-30753.16327404,0.00046707,12]
[314291969,1708158638959,-49392.83752376,0.00046707,12]
[314291970,1708158638968,-83376.82428,0.00046707,11]
[314291971,1708158638977,-10144.4841,0.00046717,2]
[314291972,1708158638986,-2460.2944,0.00046717,2]
[314291973,1708158638995,-3944.0597,0.00046717,2]
[314291974,1708158639005,-7126.8228,0.00046717,2]
[314291975,1708158639015,-2334.6085,0.00046717,2]
[314291976,1708158639024,-5773.8305,0.00046717,3]
[314291977,1708158639034,-4690.1662,0.00046717,2]
[314291978,1708158639043,-61719.45990917,0.00046717,2]
[314291979,1708158639055,-16074.9039778,0.00046717,2]
[314291980,1708158640273,-200.77807029,0.00045,120]
[314291981,1708158640283,-74.71307502,0.00046717,2]
[314291985,1708158644768,-500.0,0.00045277,2]
[314291986,1708158644781,-399.4175446,0.00045277,2]
[314291987,1708158644827,-355.5824554,0.00045277,2]
[314291988,1708158644839,-694.81810822,0.00046717,2]
[314291989,1708158644852,-2326.24754127,0.00046717,2]
[314291990,1708158644985,-10916.29412279,0.00046717,2]
[314291991,1708158645057,-1941.69849287,0.00046717,2]
[314291992,1708158645070,-500.0,0.00046717,2]
[314291993,1708158645940,-34787.01607286,0.00046717,2]
[314291994,1708158645949,-1338.5924,0.00046717,2]
[314291995,1708158645958,-177.43,0.000469,2]
[314291996,1708158645968,-1167.0,0.00047106,5]
[314291997,1708158645977,-167.0,0.00047146,2]
[314291998,1708158645986,-2000.0,0.000474,2]
[314291999,1708158645995,-177.43,0.00047448,2]
[314292000,1708158646004,-363.56,0.00047494,120]
[314292001,1708158646017,-166.73,0.00047555,2]
[314292002,1708158646027,-14572.0001451,0.00047801,12]
[314292003,1708158646037,-10178.17167328,0.00047891,12]
[314292004,1708158646054,-500.0,0.00047891,12]
[314292005,1708158753456,550.0,0.00025,3]
[314292006,1708158845421,-600.0,0.00027,3]
[314292007,1708158845446,-355.28396762,0.000289,2]
[314292008,1708158845472,-650.0,0.00029,3]
[314292009,1708158845498,-700.0,0.00031,3]
[314292010,1708158845521,-750.0,0.00033,3]
[314292012,1708159025246,3926.33099716,0.00035,15]
[314292013,1708159045251,3926.33099716,0.00035,15]
[314292014,1708159067253,3926.33099716,0.00035,15]
[314292015,1708159075806,200.28543471,0.00034825,2]
[314292016,1708159084567,155.0,0.00035,4]
[314292017,1708159087255,3926.33099716,0.00035,15]
[314292018,1708159100560,155.0,0.00035,4]
[314292019,1708159105265,3926.33099716,0.00035,15]
[314292020,1708159116567,155.0,0.00035,4]
[314292021,1708159123276,3926.33099716,0.00035,15]
[314292022,1708159134554,155.0,0.00035,4]
[314292023,1708159141287,1242.10671435,0.00035,15]
[314292024,1708159152573,155.0,0.00035,4]
[314292025,1708159170730,1194.9105094,0.00035,4]
[314292026,1708159172627,156.89058219,0.00035,4]
[314292027,1708159180511,176.85,0.00023145,2]
[314292028,1708159186727,1194.9105094,0.00035,4]
[314292029,1708159206734,1194.9105094,0.00035,4]
[314292030,1708159228732,1186.86029869,0.00035,4]
[314292032,1708159547590,3000.0,0.00035,2]
[314292033,1708159595408,1047.48472,0.00035,2]
[314292034,1708159607249,200.0,0.00034128,2]
[314292036,1708159638198,2500.0,0.00035,2]
[314292037,1708159681101,872.90393,0.00035,2]
[314292038,1708159723774,2083.33333,0.00035,2]
[314292039,1708159766572,727.41994,0.00035,2]
[314292040,1708159787120,275.87697227,0.00034825,2]
[314292041,1708159809408,1736.11111,0.00035,2]
[314292046,1708159831907,-155.0,0.00035199,2]
[314292048,1708159831918,-205.98000001,0.00035199,2]
[314292051,1708159832073,-1934.93965248,0.00035199,2]
[314292052,1708159832083,-5861.0,0.000352,2]
[314292053,1708159832093,-186.01,0.0003534,30]
[314292054,1708159832103,-1861.66346308,0.00038845,4]
[314292055,1708159832113,-214.8,0.000398,2]
[314292056,1708159832123,-1736.11111,0.0004,2]
[314292057,1708159832133,-211.1892,0.0004002,2]
[314292058,1708159832143,-295.15741291,0.00040218,5]
[314292060,1708159832380,-3205.38677655,0.00040506,11]
[314292061,1708159832394,-509.3791713,0.00040506,11]
[314292062,1708159832405,-4895.14169569,0.00040888,120]
[314292063,1708159832417,-421.07761078,0.00040888,120]
[314292069,1708159837940,-749.29657631,0.00040888,120]
[314292070,1708159837951,-998.89173636,0.00040888,120]
[314292071,1708159837963,-8788.42825391,0.00040888,120]
[314292072,1708159837972,-8068.51835413,0.00040888,2]
[314292073,1708159837981,-9849.44610377,0.00040888,2]
[314292074,1708159837990,-13573.05826683,0.00040888,120]